fUST/lending_fUST_20250516
["ID","MTS","AMOUNT","RATE_DAILY","PERIOD"]
[361263738,1747404636602,-450.0,0.00013972,2]
[361263740,1747404636611,-450.0,0.00013972,2]
[361263742,1747404636621,-450.0,0.00013972,2]
[361263744,1747404636631,-1000.0,0.00014,2]
[361263745,1747404636640,-151.0,0.00014005,2]
[361263747,1747404636649,-151.0,0.00014005,2]
[361263749,1747404636659,-151.0,0.00014005,2]
[361263751,1747404636669,-151.0,0.00014005,2]
[361263753,1747404636678,-151.0,0.00014005,2]
[361263755,1747404636688,-151.0,0.00014005,2]
[361263757,1747404636698,-368.813268,0.00014005,2]
[361263758,1747404636707,-151.0,0.00014108,2]
[361263760,1747404636716,-151.0,0.00014108,2]
[361263761,1747404636725,-151.0,0.00014108,2]
[361263762,1747404636735,-151.0,0.00014108,2]
[361263763,1747404636744,-151.0,0.00014108,2]
[361263764,1747404636753,-151.0,0.00014108,2]
[361263765,1747404636763,-151.0,0.00014108,2]
[361263766,1747404636774,-368.813268,0.00014108,2]
[361263767,1747404636783,-308.763518,0.00014108,2]
[361263768,1747404636792,-308.763518,0.00014108,2]
[361263769,1747404636801,-151.0,0.00014108,2]
[361263770,1747404636811,-226.761538,0.00014108,2]
[361263771,1747404636821,-398.404771,0.00014108,2]
[361263772,1747404636830,-398.404771,0.00014108,2]
[361263773,1747404636839,-151.0,0.00014108,2]
[361263774,1747404636848,-151.0,0.00014108,2]
[361263775,1747404636858,-170.368986,0.00014108,2]
[361263776,1747404636867,-170.368986,0.00014108,2]
[361263777,1747404636876,-151.0,0.00014108,2]
[361263778,1747404636886,-151.0,0.00014109,2]
[361263779,1747404636895,-151.0,0.00014109,2]
[361263780,1747404636903,-183.128104,0.00014109,2]
[361263781,1747404636912,-151.0,0.00014109,2]
[361263782,1747404636922,-151.0,0.00014109,2]
[361263783,1747404636931,-280.869062,0.00014109,2]
[361263784,1747404636940,-151.0,0.00014109,2]
[361263785,1747404636954,-151.0,0.00014109,2]
[361263786,1747404636966,-368.813268,0.00014109,2]
[361263787,1747404636979,-308.763518,0.00014109,2]
[361263788,1747404636991,-308.763518,0.00014109,2]
[361263789,1747404637004,-151.0,0.00014109,2]
[361263790,1747404637014,-151.0,0.00014109,2]
[361263791,1747404637024,-251.240628,0.00014109,2]
[361263792,1747404637035,-151.0,0.00014109,2]
[361263793,1747404637047,-151.0,0.00014109,2]
[361263794,1747404637059,-151.0,0.00014109,2]
[361263795,1747404637070,-151.0,0.00014109,2]
[361263796,1747404637082,-516.989565,0.00014109,2]
[361263797,1747404637093,-516.989565,0.00014109,2]
[361263798,1747404637105,-516.989565,0.00014109,2]
[361263799,1747404637116,-516.989565,0.00014109,2]
[361263800,1747404637127,-455.025104,0.00014109,2]
[361263801,1747404637139,-455.025104,0.00014109,2]
[361263802,1747404637151,-455.025104,0.00014109,2]
[361263803,1747404637164,-455.025104,0.00014109,2]
[361263804,1747404637176,-478.092377,0.00014109,2]
[361263805,1747404637186,-478.092377,0.00014109,2]
[361263806,1747404637197,-478.092377,0.00014109,2]
[361263807,1747404637209,-478.092377,0.00014109,2]
[361263808,1747404637220,-151.0,0.00014109,2]
[361263809,1747404637231,-1623.28,0.00014109,2]
[361263810,1747404637242,-450.0,0.00014109,2]
[361263811,1747404637254,-1466.07,0.00014109,2]
[361263812,1747404637266,-478.13926564,0.00014109,2]
[361263813,1747404637277,-151.0,0.00014109,2]
[361263814,1747404637288,-151.0,0.00014109,2]
[361263815,1747404637299,-229.46059,0.00014109,2]
[361263816,1747404637309,-229.46059,0.00014109,2]
[361263817,1747404637319,-213.025078,0.00014109,2]
[361263818,1747404637330,-398.404771,0.00014109,2]
[361263819,1747404637341,-398.404771,0.00014109,2]
[361263820,1747404637351,-450.0,0.00014109,2]
[361263821,1747404637366,-229.46059,0.00014109,2]
[361263823,1747404637377,-229.46059,0.00014109,2]
[361263824,1747404637389,-450.0,0.00014109,2]
[361263826,1747404637401,-829.44,0.00014109,2]
[361263827,1747404637412,-647.45,0.00014109,2]
[361263828,1747404637423,-346.739799,0.00014109,2]
[361263830,1747404637435,-346.739799,0.00014109,2]
[361263831,1747404637447,-346.739799,0.00014109,2]
[361263832,1747404637460,-346.739805,0.00014109,2]
[361263834,1747404637472,-151.0,0.00014109,2]
[361263836,1747404637484,-450.0,0.00014109,2]
[361263838,1747404637494,-450.0,0.00014109,2]
[361263840,1747404637504,-450.0,0.00014109,2]
[361263842,1747404637514,-944.71,0.00014109,2]
[361263844,1747404637525,-164.291136,0.00014109,2]
[361263847,1747404637535,-450.0,0.00014109,2]
[361263849,1747404637546,-450.0,0.00014109,2]
[361263851,1747404637559,-450.0,0.00014109,2]
[361263854,1747404637572,-450.0,0.00014109,2]
[361263856,1747404637583,-450.0,0.00014109,2]
[361263858,1747404637595,-450.0,0.00014109,2]
[361263860,1747404637605,-170.368986,0.00014109,2]
[361263862,1747404637616,-450.0,0.00014109,2]
[361263864,1747404637627,-170.368994,0.00014109,2]
[361263866,1747404637638,-151.0,0.00014109,2]
[361263868,1747404637650,-450.0,0.00014109,2]
[361263871,1747404637666,-450.0,0.00014109,2]
[361263873,1747404637677,-450.0,0.00014109,2]
[361263875,1747404637688,-450.0,0.00014109,2]
[361263877,1747404637699,-450.0,0.00014109,2]
[361263879,1747404637709,-450.0,0.00014109,2]
[361263882,1747404637720,-375.858,0.00014155,2]
[361263884,1747404637731,-160.01139275,0.00014236,2]
[361263886,1747404637742,-151.0,0.00014246,2]
[361263888,1747404637752,-151.0,0.00014246,2]
[361263890,1747404637763,-151.0,0.00014246,2]
[361263892,1747404637775,-151.0,0.00014246,2]
[361263894,1747404637786,-368.813268,0.00014246,2]
[361263896,1747404637796,-308.763518,0.00014246,2]
[361263898,1747404637807,-308.763518,0.00014246,2]
[361263900,1747404637818,-151.0,0.00014246,2]
[361263903,1747404637829,-151.0,0.00014246,2]
[361263906,1747404637840,-516.989565,0.00014246,2]
[361263908,1747404637850,-516.989565,0.00014246,2]
[361263910,1747404637861,-455.025104,0.00014246,2]
[361263912,1747404637872,-455.025104,0.00014246,2]
[361263914,1747404637882,-478.092377,0.00014246,2]
[361263916,1747404637893,-478.092377,0.00014246,2]
[361263918,1747404637905,-151.0,0.00014246,2]
[361263921,1747404637916,-1623.28,0.00014246,2]
[361263923,1747404637927,-450.0,0.00014246,2]
[361263925,1747404637938,-1466.07,0.00014246,2]
[361263927,1747404637948,-151.0,0.00014246,2]
[361263929,1747404637959,-229.46059,0.00014246,2]
[361263931,1747404637970,-398.404771,0.00014246,2]
[361263933,1747404637983,-398.404771,0.00014246,2]
[361263935,1747404637994,-450.0,0.00014246,2]
[361263938,1747404638006,-229.46059,0.00014246,2]
[361263940,1747404638017,-450.0,0.00014246,2]
[361263942,1747404638027,-829.44,0.00014246,2]
[361263944,1747404638038,-647.45,0.00014246,2]
[361263946,1747404638048,-450.0,0.00014246,2]
[361263948,1747404638059,-450.0,0.00014246,2]
[361263950,1747404638069,-450.0,0.00014246,2]
[361263953,1747404638081,-944.71,0.00014246,2]
[361263955,1747404638091,-450.0,0.00014246,2]
[361263957,1747404638102,-450.0,0.00014246,2]
[361263959,1747404638113,-450.0,0.00014246,2]
[361263961,1747404638123,-327.70189511,0.00014246,2]
[361263963,1747404638134,-490.11,0.00014246,2]
[361263966,1747404638145,-450.0,0.00014246,2]
[361263968,1747404638156,-450.0,0.00014246,2]
[361263970,1747404638166,-450.0,0.00014246,2]
[361263972,1747404638177,-450.0,0.00014246,2]
[361263974,1747404638188,-450.0,0.00014246,2]
[361263976,1747404638201,-450.0,0.00014246,2]
[361263978,1747404638211,-450.0,0.00014246,2]
[361263980,1747404638222,-450.0,0.00014246,2]
[361263982,1747404638233,-337.46928112,0.00014278,2]
[361263985,1747404638243,-4020.65405464,0.00014318,2]
[361263987,1747404638254,-282.055,0.00014383,2]
[361263989,1747404638264,-151.0,0.00014383,2]
[361263991,1747404638275,-151.0,0.00014383,2]
[361263993,1747404638286,-151.0,0.00014383,2]
[361263995,1747404638297,-368.813268,0.00014383,2]
[361263997,1747404638309,-368.813268,0.00014383,2]
[361263999,1747404638319,-308.763518,0.00014383,2]
[361264001,1747404638330,-308.763518,0.00014383,2]
[361264003,1747404638341,-151.0,0.00014383,2]
[361264006,1747404638351,-241.909536,0.00014383,2]
[361264008,1747404638364,-516.989565,0.00014383,2]
[361264010,1747404638375,-516.989565,0.00014383,2]
[361264012,1747404638386,-455.025104,0.00014383,2]
[361264014,1747404638397,-455.025104,0.00014383,2]
[361264016,1747404638407,-478.092377,0.00014383,2]
[361264018,1747404638417,-478.092377,0.00014383,2]
[361264020,1747404638428,-1623.28,0.00014383,2]
[361264022,1747404638442,-450.0,0.00014383,2]
[361264024,1747404638454,-1466.07,0.00014383,2]
[361264027,1747404638465,-151.0,0.00014383,2]
[361264029,1747404638476,-229.46059,0.00014383,2]
[361264031,1747404638488,-450.0,0.00014383,2]
[361264033,1747404638498,-229.4606,0.00014383,2]
[361264035,1747404638508,-450.0,0.00014383,2]
[361264037,1747404638520,-829.44,0.00014383,2]
[361264039,1747404638530,-647.45,0.00014383,2]
[361264041,1747404638541,-450.0,0.00014383,2]
[361264044,1747404638552,-450.0,0.00014383,2]
[361264046,1747404638563,-450.0,0.00014383,2]
[361264048,1747404638574,-944.71,0.00014383,2]
[361264050,1747404638585,-450.0,0.00014383,2]
[361264052,1747404638595,-151.86921662,0.00014383,2]
[361264054,1747404638606,-450.0,0.00014383,2]
[361264056,1747404638616,-450.0,0.00014383,2]
[361264058,1747404638627,-450.0,0.00014383,2]
[361264061,1747404638639,-450.0,0.00014383,2]
[361264063,1747404638650,-498.18184901,0.00014383,2]
[361264065,1747404638661,-192.01,0.00014383,2]
[361264067,1747404638672,-450.0,0.00014383,2]
[361264069,1747404638683,-450.0,0.00014383,2]
[361264071,1747404638694,-450.0,0.00014383,2]
[361264073,1747404638706,-2083.86878053,0.000145,2]
[361264075,1747404638717,-500.000001,0.000145,2]
[361264077,1747404638728,-151.0,0.0001452,2]
[361264079,1747404638737,-151.0,0.0001452,2]
[361264082,1747404638748,-161.318608,0.0001452,2]
[361264084,1747404638757,-368.813268,0.0001452,2]
[361264086,1747404638767,-368.813268,0.0001452,2]
[361264087,1747404638776,-308.763518,0.0001452,2]
[361264089,1747404638786,-308.763518,0.0001452,2]
[361264091,1747404638795,-151.0,0.0001452,2]
[361264112,1747404638992,-516.989565,0.0001452,2]
[361264115,1747404639012,-516.989556,0.0001452,2]
[361264117,1747404639025,-455.025104,0.0001452,2]
[361264119,1747404639035,-455.025104,0.0001452,2]
[361264121,1747404639044,-478.092377,0.0001452,2]
[361264123,1747404639053,-478.09238653,0.0001452,2]
[361264125,1747404639063,-1623.28,0.0001452,2]
[361264127,1747404639072,-450.0,0.0001452,2]
[361264129,1747404639081,-1466.07,0.0001452,2]
[361264131,1747404639091,-151.0,0.0001452,2]
[361264133,1747404639100,-207.78158371,0.0001452,2]
[361264135,1747404639110,-450.0,0.0001452,2]
[361264137,1747404639119,-829.44,0.0001452,2]
[361264139,1747404639128,-647.45,0.0001452,2]
[361264141,1747404639138,-450.0,0.0001452,2]
[361264143,1747404639147,-450.0,0.0001452,2]
[361264145,1747404639157,-450.0,0.0001452,2]
[361264147,1747404639166,-944.71,0.0001452,2]
[361264149,1747404639174,-450.0,0.0001452,2]
[361264151,1747404639184,-450.0,0.0001452,2]
[361264153,1747404639193,-450.0,0.0001452,2]
[361264155,1747404639202,-450.0,0.0001452,2]
[361264157,1747404639211,-450.0,0.0001452,2]
[361264158,1747404639220,-450.0,0.0001452,2]
[361264160,1747404639229,-423.7929398,0.0001452,2]
[361264162,1747404639238,-450.0,0.0001452,2]
[361264164,1747404639248,-587.0,0.00014532,2]
[361264166,1747404639257,-587.0,0.00014532,2]
[361264168,1747404639266,-587.0,0.00014532,2]
[361264170,1747404639276,-160.01139275,0.00014568,2]
[361264172,1747404639285,-2351.0,0.00014591,2]
[361264174,1747404639295,-151.0,0.00014657,2]
[361264176,1747404639305,-151.0,0.00014657,2]
[361264178,1747404639316,-368.813268,0.00014657,2]
[361264180,1747404639325,-368.813268,0.00014657,2]
[361264182,1747404639335,-308.763518,0.00014657,2]
[361264184,1747404639344,-308.763518,0.00014657,2]
[361264186,1747404639354,-295.896092,0.00014657,2]
[361264188,1747404639364,-455.025104,0.00014657,2]
[361264190,1747404639373,-455.025104,0.00014657,2]
[361264192,1747404639386,-1623.28,0.00014657,2]
[361264194,1747404639395,-450.0,0.00014657,2]
[361264196,1747404639405,-1466.07,0.00014657,2]
[361264198,1747404639415,-151.0,0.00014657,2]
[361264200,1747404639424,-450.0,0.00014657,2]
[361264202,1747404639433,-829.44,0.00014657,2]
[361264204,1747404639442,-647.45,0.00014657,2]
[361264206,1747404639452,-291.79662616,0.00014657,2]
[361264208,1747404639461,-450.0,0.00014657,2]
[361264210,1747404639471,-450.0,0.00014657,2]
[361264212,1747404639480,-944.71,0.00014657,2]
[361264214,1747404639489,-450.0,0.00014657,2]
[361264216,1747404639498,-450.0,0.00014657,2]
[361264218,1747404639507,-450.0,0.00014657,2]
[361264220,1747404639517,-320.65,0.00014657,2]
[361264222,1747404639526,-450.0,0.00014657,2]
[361264224,1747404639536,-450.0,0.00014657,2]
[361264226,1747404639545,-480.71721534,0.00014657,2]
[361264228,1747404639555,-1000.0,0.000147,2]
[361264230,1747404639564,-4020.65405464,0.00014791,2]
[361264232,1747404639573,-1623.28,0.00014794,2]
[361264233,1747404639582,-450.0,0.00014794,2]
[361264236,1747404639592,-1466.07,0.00014794,2]
[361264237,1747404639601,-450.0,0.00014794,2]
[361264240,1747404639611,-829.44,0.00014794,2]
[361264241,1747404639620,-647.45,0.00014794,2]
[361264243,1747404639629,-450.0,0.00014794,2]
[361264245,1747404639640,-450.0,0.00014794,2]
[361264247,1747404639649,-944.71,0.00014794,2]
[361264249,1747404639659,-450.0,0.00014794,2]
[361264251,1747404639669,-450.0,0.00014794,2]
[361264253,1747404639679,-450.0,0.00014794,2]
[361264255,1747404639688,-450.0,0.00014794,2]
[361264257,1747404639698,-450.0,0.00014794,2]
[361264259,1747404639708,-2000.0,0.000148,2]
[361264261,1747404639717,-1156.1471898,0.00014814,2]
[361264263,1747404639726,-2722.98019716,0.0001485,2]
[361264265,1747404639735,-1489.9302309,0.0001485,2]
[361264267,1747404639745,-151.0,0.0001485,2]
[361264268,1747404639755,-151.0,0.0001485,2]
[361264269,1747404639765,-368.813268,0.0001485,2]
[361264270,1747404639776,-368.813268,0.0001485,2]
[361264271,1747404639786,-308.763518,0.0001485,2]
[361264272,1747404639797,-308.763518,0.0001485,2]
[361264273,1747404639807,-733.913971,0.0001485,2]
[361264274,1747404639817,-121892.20711395,0.0001488,2]
[361264292,1747404639984,-3637.44109565,0.0001488,2]
[361264331,1747404640321,-500.0,0.00013264,2]
[361264333,1747404640330,-322.53109009,0.00013264,2]
[361264361,1747404640601,-75.4905597,0.00013264,2]
[361264364,1747404640611,-196.39308778,0.00013264,2]
[361264366,1747404640622,-58.27035252,0.00013264,2]
[361264368,1747404640634,-441.72964748,0.00013264,2]
[361264370,1747404640644,-500.0,0.00013264,2]
[361264372,1747404640654,-500.0,0.00013264,2]
[361264374,1747404640663,-336.26704452,0.00013526,2]
[361264777,1747404644447,-67.73295548,0.00013526,2]
[361264779,1747404644457,-998.24360331,0.00013805,2]
[361264781,1747404644466,-160.0,0.00013805,2]
[361264783,1747404644476,-151.0,0.00013972,2]
[361264785,1747404644485,-151.0,0.00013972,2]
[361264787,1747404644495,-151.0,0.00014109,2]
[361264789,1747404644504,-171.182125,0.00014109,2]
[361264791,1747404644513,-28949.87806885,0.0001488,2]
[361264793,1747404644527,-1526.86965393,0.0001488,2]
[361266413,1747405076446,2155.19979628,0.0002739,120]
[361266414,1747405145923,7019.0,0.00027397,120]
[361266424,1747405770100,-203.55172513,0.00011363,2]
[361266425,1747405773286,-196.47763723,0.00011363,2]
[361266426,1747405774801,-155.26618777,0.00011363,2]
[361266427,1747405776862,-189.0,0.00011249,14]
[361266429,1747405781259,-333.1051772,0.00011249,14]
[361266430,1747405784005,-165.8948228,0.00011249,14]
[361266431,1747405785456,-166.94641052,0.00011249,14]
[361266432,1747405790032,-226.91797032,0.00011249,14]
[361266433,1747405792235,-181.0,0.00011249,14]
[361266434,1747405798382,-208.71843324,0.00011249,14]
[361266435,1747405801555,-223.5143695,0.00011249,14]
[361266437,1747405805739,-239.19050477,0.00011249,14]
[361266439,1747405808386,-215.51499047,0.00011249,14]
[361266441,1747405814612,-165.48684912,0.00011249,14]
[361266442,1747405816520,-200.02633474,0.00011249,14]
[361266443,1747405821847,-191.76733118,0.00011249,14]
[361266444,1747405824497,-189.06289489,0.00011249,14]
[361266445,1747405830399,-206.76423893,0.00011249,14]
[361266542,1747405832842,-1897.08967232,0.00011249,14]
[361266544,1747405832852,-300.0,0.00011362,2]
[361266545,1747405832861,-300.0,0.00011362,2]
[361266546,1747405832871,-300.0,0.00011362,2]
[361266547,1747405832881,-1200.0,0.00011362,2]
[361266548,1747405832891,-9444.70444987,0.00011363,2]
[361266549,1747405832900,-250.0,0.00012083,2]
[361266550,1747405832910,-5048.02501681,0.000121,2]
[361266551,1747405832919,-24900.0,0.00012124,2]
[361266552,1747405832929,-463.135759,0.00012297,2]
[361266553,1747405832939,-884.1308203,0.00012369,2]
[361266554,1747405832951,-420.0,0.0001248,2]
[361266555,1747405832960,-1200.0,0.00012498,2]
[361266556,1747405832970,-152.0,0.00012831,2]
[361266557,1747405832980,-5607.11306576,0.000129,2]
[361266558,1747405832991,-3623.49993071,0.000129,2]
[361266559,1747405833006,-1029.05586708,0.000129,2]
[361266560,1747405833046,-39740.33113645,0.000129,2]
[361266561,1747405833056,-506.25609039,0.00012985,2]
[361266562,1747405833066,-3963.736057,0.00012989,2]
[361266563,1747405833075,-202.44024063,0.00013,2]
[361266564,1747405833084,-306.712423,0.00013118,2]
[361266565,1747405833094,-1828.511817,0.00013119,2]
[361266566,1747405833103,-156.977744,0.00013191,2]
[361266567,1747405833113,-207.4,0.0001345,2]
[361266568,1747405833122,-500.0,0.00013697,2]
[361266569,1747405833131,-500.0,0.00013697,2]
[361266570,1747405833141,-500.0,0.00013697,2]
[361266571,1747405833150,-500.0,0.00013697,2]
[361266572,1747405833160,-332.97878467,0.00013697,2]
[361266573,1747405833169,-358.53815231,0.00013697,2]
[361266574,1747405833178,-500.0,0.00013697,2]
[361266575,1747405833188,-400.0,0.00013698,2]
[361266576,1747405833197,-400.0,0.00013698,2]
[361266577,1747405833206,-549.08,0.00013698,2]
[361266578,1747405833216,-400.0,0.00013698,2]
[361266579,1747405833225,-450.0,0.00013698,2]
[361266580,1747405833234,-402.9165845,0.00013698,2]
[361266581,1747405833243,-410.71119106,0.00013698,2]
[361266582,1747405833252,-210.43938365,0.00013698,2]
[361266583,1747405833261,-400.0,0.00013698,2]
[361266584,1747405833270,-400.0,0.00013698,2]
[361266585,1747405833280,-152.60960254,0.00013698,2]
[361266586,1747405833290,-506.46,0.00013698,2]
[361266587,1747405833299,-400.0,0.00013698,2]
[361266588,1747405833308,-405.97175513,0.00013698,2]
[361266589,1747405833318,-450.0,0.00013698,2]
[361266590,1747405833327,-400.0,0.00013698,2]
[361266591,1747405833336,-400.0,0.00013698,2]
[361266592,1747405833345,-400.0,0.00013698,2]
[361266593,1747405833354,-400.0,0.00013698,2]
[361266594,1747405833363,-400.0,0.00013698,2]
[361266595,1747405833373,-400.0,0.00013698,2]
[361266596,1747405833383,-400.0,0.00013698,2]
[361266597,1747405833394,-450.0,0.00013698,2]
[361266598,1747405833403,-400.0,0.00013698,2]
[361266599,1747405833412,-400.0,0.00013698,2]
[361266600,1747405833422,-450.0,0.00013698,2]
[361266601,1747405833433,-400.0,0.00013698,2]
[361266602,1747405833442,-1014.55,0.00013698,2]
[361266603,1747405833451,-461.23,0.00013698,2]
[361266604,1747405833460,-450.0,0.00013698,2]
[361266605,1747405833472,-916.29,0.00013698,2]
[361266606,1747405833482,-450.0,0.00013698,2]
[361266607,1747405833491,-518.4,0.00013698,2]
[361266608,1747405833500,-450.0,0.00013698,2]
[361266609,1747405833509,-450.0,0.00013698,2]
[361266610,1747405833519,-450.0,0.00013698,2]
[361266611,1747405833528,-450.0,0.00013698,2]
[361266612,1747405833537,-574.01,0.00013698,2]
[361266613,1747405833547,-450.0,0.00013698,2]
[361266614,1747405833556,-450.0,0.00013698,2]
[361266615,1747405833566,-450.0,0.00013698,2]
[361266616,1747405833575,-590.44,0.00013698,2]
[361266617,1747405833585,-450.0,0.00013698,2]
[361266618,1747405833594,-413.09,0.00013698,2]
[361266619,1747405833604,-450.0,0.00013698,2]
[361266620,1747405833613,-450.0,0.00013698,2]
[361266621,1747405833623,-450.0,0.00013698,2]
[361266622,1747405833632,-450.0,0.00013698,2]
[361266623,1747405833815,-450.0,0.00013698,2]
[361266624,1747405833825,-450.0,0.00013698,2]
[361266625,1747405833836,-400.0,0.00013698,2]
[361266626,1747405833846,-426.02,0.00013698,2]
[361266627,1747405833855,-405.89950643,0.00013698,2]
[361266628,1747405833865,-450.0,0.00013698,2]
[361266629,1747405833875,-400.0,0.00013698,2]
[361266630,1747405833884,-450.0,0.00013698,2]
[361266631,1747405833894,-660.089422,0.00013699,2]
[361266632,1747405833904,-587.0,0.0001371,2]
[361266633,1747405833913,-160.0,0.00013833,2]
[361266634,1747405833924,-422.39640784,0.00013833,2]
[361266635,1747405833934,-160.0,0.00013833,2]
[361266636,1747405833944,-212.26722696,0.00013833,2]
[361266637,1747405833953,-12631.88158148,0.00013833,2]
[361266638,1747405833963,-160.0,0.00013833,2]
[361266639,1747405833972,-998.24360331,0.00013833,2]
[361266640,1747405833982,-216.67221,0.00013833,2]
[361266641,1747405833992,-400.0,0.00013835,2]
[361266642,1747405834002,-450.0,0.00013835,2]
[361266643,1747405834012,-1014.55,0.00013835,2]
[361266644,1747405834021,-916.29,0.00013835,2]
[361266645,1747405834032,-493.55849407,0.00013835,2]
[361266646,1747405834042,-518.4,0.00013835,2]
[361266647,1747405834052,-450.0,0.00013835,2]
[361266648,1747405834062,-450.0,0.00013835,2]
[361266649,1747405834071,-450.0,0.00013835,2]
[361266650,1747405834081,-450.0,0.00013835,2]
[361266651,1747405834091,-450.0,0.00013835,2]
[361266652,1747405834101,-450.0,0.00013835,2]
[361266653,1747405834111,-590.44,0.00013835,2]
[361266654,1747405834120,-450.0,0.00013835,2]
[361266655,1747405834132,-163.66226124,0.00013835,2]
[361266656,1747405834146,-286.33773876,0.00013835,2]
[361266657,1747405834156,-450.0,0.00013835,2]
[361266658,1747405834166,-450.0,0.00013835,2]
[361266659,1747405834175,-450.0,0.00013835,2]
[361266660,1747405834186,-450.0,0.00013835,2]
[361266661,1747405834196,-155.1626434,0.00013918,2]
[361266662,1747405834206,-160.0,0.00013971,2]
[361266663,1747405834216,-361.41,0.00013972,2]
[361266664,1747405834226,-1014.55,0.00013972,2]
[361266665,1747405834236,-916.29,0.00013972,2]
[361266666,1747405834247,-518.4,0.00013972,2]
[361266667,1747405834256,-450.0,0.00013972,2]
[361266668,1747405834266,-450.0,0.00013972,2]
[361266669,1747405834276,-450.0,0.00013972,2]
[361266670,1747405834286,-450.0,0.00013972,2]
[361266671,1747405834296,-450.0,0.00013972,2]
[361266672,1747405834305,-450.0,0.00013972,2]
[361266673,1747405834315,-590.44,0.00013972,2]
[361266674,1747405834325,-450.0,0.00013972,2]
[361266675,1747405834335,-450.0,0.00013972,2]
[361266676,1747405834345,-450.0,0.00013972,2]
[361266677,1747405834355,-450.0,0.00013972,2]
[361266678,1747405834365,-450.0,0.00013972,2]
[361266679,1747405834375,-450.0,0.00013972,2]
[361266680,1747405834387,-250.0,0.00014028,2]
[361266681,1747405834397,-363.2556249,0.00014055,2]
[361266682,1747405834406,-363.2556249,0.00014055,2]
[361266683,1747405834416,-363.2556249,0.00014055,2]
[361266684,1747405834425,-362.7216421,0.00014055,2]
[361266685,1747405834435,-151.0,0.00014109,2]
[361266686,1747405834444,-152.034753,0.00014109,2]
[361266687,1747405834454,-180.316538,0.00014109,2]
[361266688,1747405834464,-151.0,0.00014109,2]
[361266689,1747405834474,-697.218272,0.00014109,2]
[361266690,1747405834483,-303.334841,0.00014109,2]
[361266691,1747405834493,-185.03041653,0.00014109,2]
[361266722,1747405838547,-386.04301695,0.00012899,2]
[361266764,1747405840978,-0.00104024,0.00012899,2]
[361266765,1747405840996,-113.95594281,0.00012899,2]
[361266766,1747405841005,-500.0,0.00012899,2]
[361266767,1747405841015,-500.0,0.00012899,2]
[361266768,1747405841024,-500.0,0.00012899,2]
[361266769,1747405841034,-500.0,0.00012899,2]
[361266770,1747405841043,-500.0,0.00012899,2]
[361266771,1747405841052,-500.0,0.00012899,2]
[361266772,1747405841062,-500.0,0.00012899,2]
[361266773,1747405841071,-338.36865905,0.00012899,2]
[361266774,1747405841080,-500.0,0.00012899,2]
[361266775,1747405841089,-500.0,0.00012899,2]
[361266776,1747405841098,-270.12347496,0.00012899,2]
[361266777,1747405841107,-500.0,0.00012899,2]
[361266778,1747405841117,-500.0,0.00012899,2]
[361266779,1747405841126,-500.0,0.00012899,2]
[361266780,1747405841135,-492.75786217,0.00012899,2]
[361266781,1747405841145,-500.0,0.00012899,2]
[361266782,1747405841154,-500.0,0.00012899,2]
[361266783,1747405841163,-157.32626057,0.00012899,2]
[361266784,1747405841173,-500.0,0.00012899,2]